bitfinex-derivatives/quotes_SOLF0:USTF0_20260312
["timestamp","ask_amount","ask_price","bid_price","bid_amount"]
[1773290273710,12.67730286,84.99,84.941,12.3799514]
[1773290273909,12.67730286,84.988,84.941,12.3799514]
[1773290275706,12.67730286,84.999,84.941,12.3799514]
[1773290275908,9.64968767,84.998,84.941,12.3799514]
[1773290276116,12.67730286,84.998,84.959,10.592]
[1773290276810,12.67730286,84.998,84.96,12.3799514]
[1773290277219,12.67730286,84.998,84.962,10.592]
[1773290277611,12.67730286,84.998,84.962,22.9719514]
[1773290278314,12.67730286,84.998,84.962,12.3799514]
[1773290280315,12.67730286,85.033,84.965,12.3799514]
[1773290280519,12.67730286,85.031,84.965,12.3799514]
[1773290280726,12.67730286,85.029,84.965,12.3799514]
[1773290280917,12.67730286,85.027,84.98,12.3799514]
[1773290283121,12.67730286,85.027,84.982,10.589]
[1773290283321,12.67730286,85.027,84.949,12.3799514]
[1773290284215,12.67730286,85.027,84.948,37.04]
[1773290284216,12.67730286,85.027,84.97,12.3799514]
[1773290285527,12.67730286,85.027,84.984,12.3799514]
[1773290286327,12.67730286,85.027,84.987,10.589]
[1773290288828,12.67730286,85.04,84.997,12.3799514]
[1773290289834,12.67730286,85.04,84.999,10.587]
[1773290290033,12.67730286,85.04,84.997,12.3799514]
[1773290290331,12.67730286,85.04,84.958,12.3799514]
[1773290291330,12.67730286,85.04,84.944,37.04]
[1773290291331,12.67730286,85.038,84.981,10.59]
[1773290292532,12.67730286,85.036,84.981,10.59]
[1773290294227,12.67730286,85.036,84.99,12.3799514]
[1773290295334,12.67730286,85.036,84.992,10.588]
[1773290299931,12.67730286,85.031,84.977,12.91020049]
[1773290300235,12.67730286,85.031,84.938,12.91020049]
[1773290301339,12.68891602,85.022,84.969,23.50120049]
[1773290302335,12.68891602,85.022,84.974,10.59]
[1773290304845,12.68891602,85.022,84.975,12.91020049]
[1773290305247,2.04701668,85.06,84.975,12.91020049]
[1773290305248,12.68891602,85.059,84.975,12.91020049]
[1773290305436,12.68891602,85.047,84.991,12.91020049]
[1773290306445,12.68891602,85.047,84.998,12.91020049]
[1773290307447,12.68891602,85.047,84.999,10.587]
[1773290307645,12.68891602,85.047,85.0,12.91020049]
[1773290307847,10.58,85.057,85.0,12.91020049]
[1773290308046,12.68891602,85.055,85.003,10.587]
[1773290308344,37.04,85.075,85.003,10.587]
[1773290308345,12.68891602,85.053,85.004,12.91020049]
[1773290308737,12.68891602,85.053,85.007,23.49620049]
[1773290308938,12.68891602,85.053,85.008,12.91020049]
[1773290309241,22.24842439,85.052,85.008,12.91020049]
[1773290309436,12.68891602,85.052,85.008,12.91020049]
[1773290310347,12.68891602,85.052,85.011,10.586]
[1773290311243,9.56394076,85.051,85.011,10.586]
[1773290311446,12.68891602,85.052,85.011,10.586]
[1773290311648,9.56353877,85.051,85.011,10.586]
[1773290311946,12.68891602,85.052,85.011,10.586]
[1773290312746,12.68891602,85.052,85.012,12.91020049]
[1773290313153,12.68891602,85.052,85.014,10.585]
[1773290313344,10.58,85.062,85.015,12.91020049]
[1773290313545,9.56564473,85.061,85.015,12.91020049]
[1773290313745,9.56564473,85.06,85.015,12.91020049]
[1773290313947,9.56564473,85.059,85.015,12.91020049]
[1773290314147,12.68891602,85.057,85.015,12.91020049]
[1773290315548,12.68891602,85.069,85.015,12.91020049]
[1773290315746,9.56899151,85.068,85.015,12.91020049]
[1773290315946,9.56899151,85.067,85.015,12.91020049]
[1773290316251,22.25790753,85.066,85.015,12.91020049]
[1773290316451,9.56899151,85.065,85.016,10.585]
[1773290316746,9.56899151,85.064,85.017,12.91020049]
[1773290317049,9.56899151,85.063,85.017,12.91020049]
[1773290317350,9.56899151,85.062,85.017,12.91020049]
[1773290317549,9.56899151,85.061,85.017,12.91020049]
[1773290317752,9.56899151,85.06,85.017,12.91020049]
[1773290317941,9.56899151,85.059,85.017,12.91020049]
[1773290318245,12.68891602,85.066,85.017,12.91020049]
[1773290318447,22.26626147,85.065,85.021,12.91020049]
[1773290318649,9.57734545,85.064,85.021,12.91020049]
[1773290318848,12.68891602,85.064,85.021,12.91020049]
[1773290320354,12.68891602,85.064,85.025,23.49420049]
[1773290321845,12.68891602,85.064,85.028,10.584]
[1773290327165,12.68891602,85.064,85.026,13.41200743]
[1773290327961,12.43650802,85.075,85.026,13.41200743]
[1773290328460,12.43650802,85.075,84.992,21.177]
[1773290328461,12.43650802,85.07,85.013,13.41200743]
[1773290328664,9.59091292,85.069,85.013,13.41200743]
[1773290328867,12.43650802,85.07,85.013,13.41200743]
[1773290329061,12.43650802,85.068,85.013,13.41200743]
[1773290330372,12.69749619,85.06,85.015,12.19769888]
[1773290331470,12.69749619,85.06,85.017,10.585]
[1773290332370,12.69749619,85.06,85.018,12.19769888]
[1773290332570,49.71749619,85.075,85.022,12.19769888]
[1773290332866,12.69749619,85.075,85.022,12.19769888]
[1773290333371,12.69749619,85.075,85.027,12.19769888]
[1773290333769,12.69749619,85.075,84.996,12.19769888]
[1773290333977,12.69749619,85.058,84.996,12.19769888]
[1773290335465,12.69749619,85.049,85.003,12.19769888]
[1773290337881,12.69749619,85.049,85.007,12.19769888]
[1773290339480,12.69749619,85.049,85.01,10.586]
[1773290340571,12.69749619,85.049,85.01,22.78369888]
[1773290341782,12.69749619,85.049,85.011,12.19769888]
[1773290343280,12.69749619,85.049,85.012,10.586]
[1773290343983,12.69749619,85.049,85.013,12.19769888]
[1773290344684,12.69749619,85.049,85.014,10.585]
[1773290344884,12.69749619,85.049,85.014,22.78269888]
[1773290345381,12.69749619,85.049,85.015,12.19769888]
[1773290345590,12.69749619,85.064,85.019,12.19769888]
[1773290346286,12.69749619,85.086,85.019,12.19769888]
[1773290346486,23.27549619,85.075,85.031,12.19769888]
[1773290350183,22.31137858,85.074,85.031,12.19769888]
[1773290350487,12.69749619,85.074,85.031,12.19769888]
[1773290353882,12.69749619,85.074,85.034,12.19769888]
[1773290354082,12.69749619,85.086,85.034,12.19769888]
[1773290354285,283.61194917,85.087,85.034,12.19769888]
[1773290354286,12.69749619,85.084,85.034,12.19769888]
[1773290354489,12.69749619,85.082,85.034,12.19769888]
[1773290355484,12.69749619,85.082,85.043,10.582]
[1773290355887,12.69749619,85.082,85.044,12.19769888]
[1773290358688,283.61194917,85.087,85.048,12.19769888]
[1773290359287,283.61194917,85.087,85.052,12.19769888]
[1773290359992,12.69749619,85.094,85.052,12.19769888]
[1773290360294,10.574,85.109,85.052,12.19769888]
[1773290360295,12.5700757,85.108,85.052,12.19769888]
[1773290360489,9.56020292,85.107,85.058,12.63911119]
[1773290360690,9.56020292,85.106,85.058,12.63911119]
[1773290360885,12.5700757,85.108,85.058,12.63911119]
[1773290361093,9.55942808,85.107,85.058,12.63911119]
[1773290361389,12.5700757,85.108,85.016,35.3]
[1773290361390,12.5700757,85.108,85.073,12.63911119]
[1773290362191,12.5700757,85.108,85.074,12.63911119]
[1773290362387,37.02,85.122,85.074,12.63911119]
[1773290362388,12.5700757,85.121,85.074,12.63911119]
[1773290362596,12.5700757,85.119,85.074,12.63911119]
[1773290362794,12.5700757,85.133,85.094,12.63911119]
[1773290364804,0.07400468,85.122,85.094,12.63911119]
[1773290365699,12.5700757,85.144,85.103,12.63911119]
[1773290366402,12.5700757,85.144,85.105,12.63911119]
[1773290366599,12.5700757,85.158,85.105,12.63911119]
[1773290367402,12.5700757,85.158,85.108,10.574]
[1773290369294,12.5700757,85.167,85.121,12.63911119]
[1773290369498,12.5700757,85.167,85.108,12.63911119]
[1773290370403,12.5700757,85.165,85.111,23.21211119]
[1773290372494,10.567,85.162,85.112,12.63911119]
[1773290372699,12.5700757,85.165,85.112,12.63911119]
[1773290372904,12.5700757,85.189,85.112,12.63911119]
[1773290373104,12.5700757,85.171,85.113,12.63911119]
[1773290374102,12.5700757,85.171,85.135,10.57]
[1773290374295,12.5700757,85.171,85.122,12.63911119]
[1773290374702,12.5700757,85.17,85.122,12.63911119]
[1773290376514,12.5700757,85.165,85.122,12.63911119]
[1773290377305,10.567,85.164,85.122,12.63911119]
[1773290377509,12.5700757,85.163,85.122,12.63911119]
[1773290377817,12.5700757,85.163,85.135,0.07412253]
[1773290378020,12.5700757,85.179,85.135,0.07412253]
[1773290379108,12.5700757,85.168,85.135,0.07412253]
[1773290381116,12.5700757,85.163,85.114,10.573]
[1773290382415,12.73568319,85.161,85.114,10.573]
[1773290382618,12.73568319,85.161,85.107,12.63911119]
[1773290384316,12.73568319,85.158,85.108,10.574]
[1773290384517,12.73568319,85.158,85.109,12.34185781]
[1773290388223,12.73568319,85.158,85.11,10.574]
[1773290388525,12.73568319,85.158,85.111,12.34185781]
[1773290391327,10.568,85.157,85.111,12.34185781]
[1773290391527,13.14142621,85.156,85.111,12.34185781]
[1773290392330,10.568,85.155,85.111,12.34185781]
[1773290392525,13.14142621,85.154,85.102,10.574]
[1773290393325,13.14142621,85.154,85.103,12.51414483]
[1773290394330,10.568,85.151,85.103,12.51414483]
[1773290394629,36.98,85.157,85.103,12.51414483]
[1773290394630,13.14142621,85.15,85.103,12.51414483]
[1773290396424,10.569,85.147,85.103,12.51414483]
[1773290396731,13.14142621,85.146,85.103,12.51414483]
[1773290398327,10.569,85.145,85.103,12.51414483]
[1773290398522,23.71042621,85.145,85.103,12.51414483]
[1773290399128,13.14142621,85.145,85.103,12.51414483]
[1773290399329,13.14142621,85.156,85.103,12.51414483]
[1773290399934,13.14142621,85.166,85.119,12.51414483]
[1773290400131,10.566,85.17,85.119,12.51414483]
[1773290401027,23.70742621,85.17,85.119,12.51414483]
[1773290401431,13.14142621,85.169,85.121,12.51414483]
[1773290406535,13.14142621,85.167,85.061,12.51414483]
[1773290406741,13.14142621,85.164,85.061,12.51414483]
[1773290406937,13.14142621,85.134,85.084,23.09114483]
[1773290407132,13.14142621,85.134,85.085,12.51414483]
[1773290408432,13.14142621,85.125,85.085,12.51414483]
[1773290412243,13.14142621,85.125,85.087,12.51414483]
[1773290418850,13.14142621,85.136,85.089,12.51414483]
[1773290419051,13.14142621,85.134,85.089,12.51414483]
[1773290419251,0.07411234,85.115,85.089,12.51414483]
[1773290419550,0.07411234,85.115,85.075,12.51414483]
[1773290419847,0.07411234,85.115,85.076,10.578]
[1773290420050,13.14142621,85.123,85.077,13.39734847]
[1773290421353,13.14142621,85.123,85.078,10.577]
[1773290421555,13.14142621,85.123,85.079,13.39734847]
[1773290421749,10.572,85.121,85.079,13.39734847]
[1773290421951,13.10036758,85.12,85.079,13.39734847]
[1773290425547,10.572,85.119,85.079,13.39734847]
[1773290425753,13.10036758,85.118,85.057,13.39734847]
[1773290426254,13.10036758,85.118,85.068,13.39734847]
[1773290427359,13.10036758,85.118,85.076,23.97534847]
[1773290427555,13.10036758,85.118,85.077,13.39734847]
[1773290428953,13.10036758,85.118,85.079,10.577]
[1773290429256,13.10036758,85.129,85.08,13.39734847]
[1773290430557,13.10036758,85.125,85.08,13.39734847]
[1773290432957,13.10036758,85.125,85.081,10.577]
[1773290433157,13.10036758,85.125,85.044,13.39734847]
[1773290434461,13.10036758,85.111,85.062,13.39734847]
[1773290435354,13.10036758,85.107,85.062,13.39734847]
[1773290440066,10.574,85.106,85.062,13.39734847]
[1773290440262,13.10036758,85.105,85.062,13.39734847]
[1773290440667,13.10036758,85.141,85.062,13.39734847]
[1773290440862,13.10036758,85.139,85.062,13.39734847]
[1773290441066,13.10036758,85.137,85.062,13.39734847]
[1773290441268,13.10036758,85.135,85.062,13.39734847]
[1773290441571,13.10036758,85.116,85.065,13.39734847]
[1773290441867,36.98,85.144,85.083,12.19921994]
[1773290441868,13.10824964,85.127,85.083,12.19921994]
[1773290442466,13.10824964,85.127,85.086,12.19921994]
[1773290445266,13.10824964,85.127,85.089,10.576]
[1773290445476,10.569,85.143,85.071,37.0]
[1773290445477,13.10824964,85.138,85.09,12.19921994]
[1773290447371,13.10824964,85.138,85.091,10.576]
[1773290447572,13.10824964,85.138,85.092,12.19921994]
[1773290449276,13.10824964,85.136,85.092,12.19921994]
[1773290449972,10.571,85.134,85.092,12.19921994]
[1773290450168,9.65582178,85.133,85.092,12.19921994]
[1773290450374,9.65582178,85.132,85.092,12.19921994]
[1773290450675,13.0669357,85.133,85.092,12.19921994]
[1773290450975,9.65582178,85.132,85.092,12.19921994]
[1773290451177,9.66490144,85.131,85.092,12.19921994]
[1773290451366,9.66490144,85.13,85.092,12.19921994]
[1773290451570,9.66490144,85.129,85.092,12.19921994]
[1773290451775,13.0669357,85.133,85.092,12.19921994]
[1773290451976,9.664901,85.132,85.092,12.19921994]
[1773290452172,9.664901,85.131,85.092,12.19921994]
[1773290452377,9.664901,85.13,85.092,12.19921994]
[1773290452678,9.664901,85.129,85.092,12.19921994]
[1773290452878,13.0669357,85.133,85.092,12.19921994]
[1773290453075,9.66551717,85.132,85.092,12.19921994]
[1773290453281,9.66551717,85.131,85.092,12.19921994]
[1773290453479,9.66551717,85.13,85.092,12.19921994]
[1773290453779,9.66551717,85.129,85.092,12.19921994]
[1773290453971,13.0669357,85.133,85.092,12.19921994]
[1773290454173,22.73235935,85.132,85.092,12.19921994]
[1773290454378,9.66542365,85.131,85.092,12.19921994]
[1773290454676,13.0669357,85.125,85.076,12.35695554]
[1773290454882,13.0669357,85.123,85.076,12.35695554]
[1773290455180,13.0669357,85.121,85.076,12.35695554]
[1773290455379,13.0669357,85.119,85.076,12.35695554]
[1773290460084,9.6676117,85.118,85.076,12.35695554]
[1773290460285,13.0669357,85.117,85.076,12.35695554]
[1773290460785,13.0669357,85.116,85.076,12.35695554]
[1773290462285,10.93964382,85.139,85.058,36.98]
[1773290462286,13.0669357,85.114,85.063,12.35695554]
[1773290462587,13.0669357,85.112,85.063,12.35695554]
[1773290462887,13.0669357,85.11,85.065,10.579]
[1773290463084,13.0669357,85.11,85.066,12.35695554]
[1773290463990,10.574,85.108,85.066,12.35695554]
[1773290464183,13.0669357,85.107,85.066,12.35695554]
[1773290464488,13.0669357,85.105,85.066,12.35695554]
[1773290466183,10.575,85.102,85.066,12.35695554]
[1773290466382,13.0669357,85.102,85.066,12.35695554]
[1773290466791,9.6696929,85.101,85.066,12.35695554]
[1773290466990,13.0669357,85.102,85.066,12.35695554]
[1773290479392,13.0669357,85.096,85.066,12.35695554]
[1773290481391,12.75756219,85.1,85.055,12.71313078]
[1773290481588,12.75756219,85.093,85.045,12.71313078]
[1773290481792,9.66423042,85.092,85.045,12.71313078]
[1773290481994,12.75756219,85.09,85.045,12.71313078]
[1773290482290,12.75756219,85.088,85.045,12.71313078]
[1773290483494,12.75756219,85.082,85.045,12.71313078]
[1773290485397,10.577,85.08,85.045,12.71313078]
[1773290485599,12.75756219,85.082,85.045,12.71313078]
[1773290498209,12.75756219,85.082,85.046,10.581]
[1773290498405,23.33356219,85.092,85.047,12.71313078]
[1773290499005,12.75756219,85.091,85.047,12.71313078]
[1773290499502,12.75756219,85.102,85.055,12.71313078]
[1773290500903,10.574,85.11,85.055,12.71313078]
[1773290501609,12.75756219,85.116,85.075,12.26592024]
[1773290502010,10.573,85.114,85.075,12.26592024]
[1773290502212,23.38455222,85.114,85.075,12.26592024]
[1773290505314,0.07423367,85.103,85.075,12.26592024]
[1773290508406,0.07423367,85.103,85.077,12.26592024]
[1773290508707,12.81155222,85.122,85.077,12.26592024]
[1773290509320,12.81155222,85.122,85.078,10.577]
[1773290509617,12.81155222,85.131,85.079,12.26592024]
[1773290509810,9.66191364,85.13,85.079,12.26592024]
[1773290510009,12.81155222,85.128,85.079,12.26592024]
[1773290510216,9.66191364,85.127,85.079,12.26592024]
[1773290510419,9.66191364,85.126,85.079,12.26592024]
[1773290510622,12.81155222,85.128,85.079,12.26592024]
[1773290510824,9.66053739,85.127,85.079,12.26592024]
[1773290511112,9.66053739,85.126,85.079,12.26592024]
[1773290511318,12.81155222,85.128,85.082,10.577]
[1773290511517,9.65922712,85.127,85.083,12.21789969]
[1773290511713,9.65922712,85.126,85.083,12.21789969]
[1773290511914,12.81155222,85.128,85.083,12.21789969]
[1773290512114,9.65922712,85.127,85.083,12.21789969]
[1773290512315,12.81155222,85.128,85.083,12.21789969]
[1773290512511,9.65772576,85.127,85.083,12.21789969]
[1773290512716,12.81155222,85.128,85.083,12.21789969]
[1773290512913,9.65772576,85.127,85.083,12.21789969]
[1773290513119,12.92333613,85.127,85.083,12.21789969]
[1773290515726,12.92333613,85.127,85.084,10.577]
[1773290515924,12.92333613,85.127,85.083,12.21789969]
[1773290515925,12.92333613,85.137,85.085,12.21789969]
[1773290516626,282.1556061,85.141,85.093,12.21789969]
[1773290516627,12.92333613,85.135,85.093,12.21789969]
[1773290525634,12.92333613,85.135,85.105,0.07406743]
[1773290531048,10.571,85.134,85.105,0.07406743]
[1773290531248,12.92333613,85.133,85.105,0.07406743]
[1773290532349,10.571,85.132,85.105,0.07406743]
[1773290532549,12.92333613,85.131,85.105,0.07406743]
[1773290534053,2.57553369,85.13,85.105,0.07406743]
[1773290534355,12.92333613,85.129,85.105,0.07406743]
[1773290535256,2.57553369,85.13,85.105,0.07406743]
[1773290535455,12.92333613,85.135,85.105,0.07406743]
[1773290538059,36.98,85.136,85.106,12.21789969]
[1773290540260,9.63649992,85.135,85.106,12.21789969]
[1773290540461,36.98,85.136,85.106,12.21789969]
[1773290540660,9.63649992,85.135,85.106,12.21789969]
[1773290540860,36.98,85.136,85.106,12.21789969]
[1773290541060,9.63649992,85.135,85.106,12.21789969]
[1773290541259,9.63649992,85.134,85.106,12.21789969]
[1773290541455,36.98,85.136,85.106,12.21789969]
[1773290544766,2.57553369,85.13,85.106,12.21789969]
[1773290545463,2.57553369,85.12,85.105,0.07406743]
[1773290547462,13.15511816,85.121,85.105,0.07406743]
[1773290548968,2.57559873,85.12,85.105,0.07406743]
[1773290550060,15.73071689,85.12,85.105,0.07406743]
[1773290550465,15.73071689,85.12,85.083,12.34323395]
[1773290550657,2.57559873,85.11,85.083,12.34323395]
[1773290550863,13.15511816,85.111,85.083,12.34323395]
[1773290552673,2.57559873,85.1,85.072,12.34323395]
[1773290553471,15.73071689,85.1,85.072,12.34323395]
[1773290553877,15.73071689,85.1,85.058,12.34323395]
[1773290554971,15.73071689,85.1,85.06,10.58]
[1773290555175,15.73071689,85.1,85.061,12.34323395]
[1773290555575,15.73071689,85.1,85.063,22.92223395]
[1773290555772,15.73071689,85.1,85.064,12.34323395]
[1773290557476,15.73071689,85.1,85.066,12.34323395]
[1773290559978,13.15511816,85.089,85.055,12.34323395]
[1773290560180,2.57559873,85.07,85.045,12.34323395]
[1773290562869,2.57559873,85.06,85.034,12.91236149]
[1773290564276,15.33374325,85.07,85.034,12.91236149]
[1773290566781,2.57559873,85.08,85.034,12.91236149]
[1773290567385,15.33374325,85.08,85.034,12.91236149]
[1773290568385,15.33374325,85.08,85.035,10.583]
[1773290568585,2.57559873,85.07,85.036,12.91236149]
[1773290570988,2.57559873,85.07,85.036,23.49536149]
[1773290571187,2.57559873,85.07,85.037,13.33000993]
[1773290574378,2.57559873,85.07,85.037,23.91300993]
[1773290574685,2.57559873,85.07,85.038,13.33000993]
[1773290576386,2.57559873,85.07,85.04,13.33000993]
[1773290576882,14.96047628,85.07,85.03,13.33000993]
[1773290578476,14.96047628,85.07,85.031,10.583]
[1773290578678,14.96047628,85.07,85.031,23.91300993]
[1773290579378,14.96047628,85.07,85.034,10.583]
[1773290580890,14.96047628,85.07,85.035,13.33000993]
[1773290586097,2.57559873,85.08,85.039,13.33000993]
[1773290587393,2.57559873,85.08,85.02,2.57559873]
[1773290587394,2.57559873,85.08,85.044,13.33000993]
[1773290587599,12.38487755,85.081,85.044,13.33000993]
[1773290588196,2.57559873,85.08,85.044,13.33000993]
[1773290590903,14.96047628,85.08,85.044,13.33000993]
[1773290591299,14.96047628,85.08,85.045,10.582]
[1773290591497,14.96047628,85.08,85.046,13.33000993]
[1773290593505,14.96047628,85.08,85.048,10.581]
[1773290594204,14.96047628,85.08,85.046,13.33000993]
[1773290600405,14.58619176,85.118,85.017,37.0]
[1773290600406,2.57559873,85.09,85.049,12.26853146]
[1773290600607,281.76351019,85.1,85.049,12.26853146]
[1773290600811,284.33910892,85.1,85.049,12.26853146]
[1773290601027,284.33910892,85.1,85.05,2.57559873]
[1773290601310,9.71161554,85.099,85.051,12.26853146]
[1773290601507,284.33910892,85.1,85.051,12.26853146]
[1773290601709,9.71161554,85.099,85.051,12.26853146]
[1773290601917,284.33910892,85.1,85.051,12.26853146]
[1773290602213,9.71434453,85.099,85.051,12.26853146]
[1773290602405,281.76351019,85.1,85.065,12.26853146]
[1773290602603,9.71433884,85.099,85.065,12.26853146]
[1773290602810,12.21709863,85.099,85.065,12.26853146]
[1773290603311,9.71749126,85.098,85.065,12.26853146]
[1773290603511,12.21709863,85.099,85.065,12.26853146]
[1773290603713,9.71749018,85.098,85.065,12.26853146]
[1773290603914,12.21709863,85.099,85.065,12.26853146]
[1773290604214,9.71749018,85.098,85.065,12.26853146]
[1773290604516,9.71749018,85.097,85.065,12.26853146]
[1773290604716,12.21709863,85.099,85.065,12.26853146]
[1773290604918,9.72119942,85.098,85.065,12.26853146]
[1773290605216,9.72119942,85.097,85.065,12.26853146]
[1773290605512,12.21709863,85.099,85.065,12.26853146]
[1773290605706,9.72122641,85.098,85.065,12.26853146]
[1773290605904,9.72122641,85.097,85.065,12.26853146]
[1773290606111,12.21709863,85.099,85.065,12.26853146]
[1773290606317,9.72001119,85.098,85.065,12.26853146]
[1773290606506,9.72001119,85.097,85.065,12.26853146]
[1773290606710,12.21709863,85.105,85.065,12.26853146]
[1773290606915,12.21709863,85.103,85.065,12.26853146]
[1773290607116,9.71938725,85.102,85.065,12.26853146]
[1773290607415,12.21709863,85.103,85.065,12.26853146]
[1773290607618,12.21709863,85.101,85.065,12.26853146]
[1773290610126,2.57690239,85.09,85.051,12.26853146]
[1773290610416,12.21709863,85.099,85.051,12.26853146]
[1773290610622,9.7142788,85.098,85.051,12.26853146]
[1773290610811,12.21709863,85.099,85.04,2.57690239]
[1773290610812,12.21709863,85.099,85.061,12.26853146]
[1773290611014,9.71427628,85.098,85.061,12.26853146]
[1773290611216,12.21709863,85.099,85.061,12.26853146]
[1773290611422,9.71349239,85.098,85.061,12.26853146]
[1773290611619,12.21709863,85.099,85.061,12.26853146]
[1773290611920,9.71349239,85.098,85.061,12.26853146]
[1773290612121,12.21709863,85.099,85.061,12.26853146]
[1773290612418,12.21709863,85.099,85.063,12.26853146]
[1773290613818,12.21709863,85.108,85.065,12.26853146]
[1773290614019,9.71135896,85.107,85.065,12.26853146]
[1773290614321,21.92845759,85.106,85.065,12.26853146]
[1773290614522,12.21709863,85.104,85.065,12.26853146]
[1773290617822,12.21709863,85.115,85.067,12.26853146]
[1773290618023,12.21709863,85.125,85.081,12.26853146]
[1773290618223,9.70528939,85.124,85.081,12.26853146]
[1773290618422,12.21709863,85.122,85.081,12.26853146]
[1773290618724,21.92238802,85.121,85.081,12.26853146]
[1773290618924,9.70528939,85.12,85.081,12.26853146]
[1773290619126,12.21709863,85.121,85.081,12.26853146]
[1773290619425,9.69966599,85.12,85.081,12.26853146]
[1773290619625,12.21709863,85.121,85.081,12.26853146]
[1773290619825,9.69966599,85.12,85.081,12.26853146]
[1773290620124,12.21709863,85.121,85.081,12.26853146]
[1773290621027,12.21709863,85.121,85.083,10.577]
[1773290621227,12.21709863,85.121,85.084,12.26853146]
[1773290624230,12.67911794,85.12,85.084,12.26853146]
[1773290633237,10.571,85.129,85.084,12.26853146]
[1773290633238,12.54446549,85.129,85.084,12.26853146]
[1773290633839,12.54446549,85.129,85.055,37.0]
[1773290633840,12.54446549,85.129,85.093,12.71512071]
[1773290635535,12.54446549,85.129,85.08,12.71512071]
[1773290635740,12.54446549,85.119,85.08,12.71512071]
[1773290637436,12.54446549,85.112,85.08,12.71512071]
[1773290641440,15.12136788,85.11,85.067,12.71512071]
[1773290642433,12.54446549,85.108,85.067,12.71512071]
[1773290643034,12.54446549,85.106,85.051,12.71512071]
[1773290643235,2.57690239,85.1,85.051,12.71512071]
[1773290643534,12.54446549,85.099,85.051,12.71512071]
[1773290644437,2.57690239,85.1,85.053,12.71512071]
[1773290644438,12.54446549,85.095,85.053,12.71512071]
[1773290648652,12.54446549,85.093,85.053,12.71512071]
[1773290659069,10.575,85.102,85.061,12.71512071]
[1773290663969,11.70638579,85.101,85.061,12.71512071]
[1773290670977,11.70638579,85.098,85.061,12.71512071]
[1773290671271,11.70638579,85.098,85.055,12.02076252]
[1773290671574,37.94,85.12,85.045,10.582]
[1773290671575,11.70638579,85.089,85.046,12.02076252]
[1773290672374,11.70638579,85.088,85.046,12.02076252]
[1773290679387,22.28338579,85.082,85.046,12.02076252]
[1773290680487,11.70638579,85.082,85.046,12.02076252]
[1773290688899,11.70638579,85.082,85.05,10.63414334]
[1773290691302,11.70638579,85.082,85.042,10.582]
[1773290691500,11.33143698,85.081,85.043,11.10136448]
[1773290703409,11.33143698,85.069,85.016,11.10136448]
[1773290703610,11.33143698,85.059,85.016,11.10136448]
[1773290704408,11.33143698,85.059,85.019,10.585]
[1773290704608,11.33143698,85.089,85.041,11.10136448]
[1773290704912,11.33143698,85.087,85.041,11.10136448]
[1773290705315,11.33143698,85.085,85.041,11.10136448]
[1773290705912,11.33143698,85.085,85.042,11.10136448]
[1773290707308,11.33143698,85.085,85.044,10.582]
[1773290707512,11.33143698,85.085,85.045,11.10136448]
[1773290708312,2.57675055,85.1,85.04,2.57675055]
[1773290708313,11.33143698,85.096,85.049,11.10136448]
[1773290708517,9.64825786,85.095,85.051,11.10136448]
[1773290708718,11.33143698,85.089,85.031,11.10136448]
[1773290708919,11.33143698,85.087,85.031,11.10136448]
[1773290709219,11.33143698,85.085,85.041,11.10136448]
[1773290710216,9.64975529,85.084,85.041,11.10136448]
[1773290710421,11.33143698,85.082,85.044,11.10136448]
[1773290711812,11.33143698,85.095,85.051,11.10136448]
[1773290712018,20.98190829,85.094,85.051,11.10136448]
[1773290712213,20.98190829,85.093,85.051,11.10136448]
[1773290712413,20.98190829,85.092,85.051,11.10136448]
[1773290712607,9.65047131,85.091,85.051,11.10136448]
[1773290712817,11.33143698,85.092,85.051,11.10136448]
[1773290712818,9.65047131,85.09,85.051,11.10136448]
[1773290713120,9.65047131,85.089,85.051,11.10136448]
[1773290713314,9.65047131,85.088,85.051,11.10136448]
[1773290713513,9.65047131,85.087,85.051,11.10136448]
[1773290713713,9.65047131,85.086,85.051,11.10136448]
[1773290713916,9.65047131,85.085,85.051,11.10136448]
[1773290714115,11.33143698,85.092,85.051,11.10136448]
[1773290714315,9.65416346,85.091,85.051,11.10136448]
[1773290714613,9.65416346,85.09,85.051,11.10136448]
[1773290714815,9.65416346,85.089,85.051,11.10136448]
[1773290715015,9.65416346,85.088,85.051,11.10136448]
[1773290715219,9.65416346,85.087,85.051,11.10136448]
[1773290715420,9.65416346,85.086,85.051,11.10136448]
[1773290715621,9.65416346,85.085,85.051,11.10136448]
[1773290715921,11.33143698,85.092,85.051,11.10136448]
[1773290716221,9.65541819,85.091,85.051,11.10136448]
[1773290716422,9.65541819,85.09,85.051,11.10136448]
[1773290716618,10.985617,85.107,85.063,11.10136448]
[1773290716619,9.65541819,85.089,85.063,11.10136448]
[1773290716825,11.33143698,85.102,85.063,11.10136448]
[1773290717018,9.66669488,85.101,85.063,11.10136448]
[1773290717322,9.66669488,85.1,85.063,11.10136448]
[1773290717523,9.66669488,85.099,85.063,11.10136448]